Cogmind - Beta 16 @@@ ROGUE MODE // 2026.01.06 @ 18:40:26 Player: oberon720 Result: Destroyed by as-90229 with Assembled F-torch Performance ------------- Evolutions (0) 0 Regions Visited (2) 400 Robots Destroyed (36) 180 Value Destroyed (453) 453 Prototype IDs (0) 0 Alien Tech Used (0) 0 Bonus (0) 0 TOTAL SCORE: 1033 Bonus ------- None Cogmind --------- Core Integrity 0/250 Matter 259/300 Energy 125/125 System Corruption 13% Temperature Cool (20) Movement Flying (37) Location -10/Mines Parts ------- > --- POWER (1) -------- Light Ion Engine > --- PROPULSION (2) --- Flight Unit Flight Unit > --- UTILITY (2) ------ Transport Network Coupler > --- WEAPON (2) ------- Light Assault Rifle Light Assault Rifle > --- INVENTORY (5) ---- Light Ion Engine Flight Unit Flight Unit Flight Unit Weight Redist. System Peak State ------------ > --- POWER ------------ Light Nuclear Core > --- PROPULSION ------- Flight Unit Flight Unit > --- UTILITY ---------- Improved Heat Sink Transport Network Coupler > --- WEAPON ----------- Small Laser Light Assault Rifle > --- INVENTORY -------- Light Ion Engine Light Ion Engine Flight Unit Flight Unit [Rating: 11] Favorites ----------- Power Ion Engine Engine Ion Engine Power Core Light Nuclear Core Propulsion Aluminum Leg Leg Aluminum Leg Flight Unit Flight Unit Utility Small Storage Unit Device Seismic Detector Storage Small Storage Unit Processor Transport Network Coupler Weapon EM Pulse Gun Energy Gun EM Pulse Gun Ballistic Gun Light Assault Rifle Build | -11 -10 -10 ------- Run | Yrd Mat Min Slots Evolved . | . . . Power . | . . . Propulsion . | . . . Utility . | . . . Weapon . | . . . Parts Attached 29 | 7 14 8 Power 4 | 1 2 1 Engine 3 | 1 1 1 Core 1 | . 1 . Reactor . | . . . Propulsion 10 | 2 5 3 Treads . | . . . Leg 5 | 2 3 . Wheel . | . . . Hover . | . . . Flight 5 | . 2 3 Utility 5 | 2 3 . Device 3 | 1 2 . Storage 1 | 1 . . Processor 1 | . 1 . Hackware . | . . . Protection . | . . . Artifact . | . . . Weapon 10 | 2 4 4 Energy Gun 4 | 2 2 . Energy Cannon . | . . . Ballistic Gun 6 | . 2 4 Ballistic Cannon . | . . . Launcher . | . . . Special Weapon . | . . . Impact Weapon . | . . . Slashing Weapon . | . . . Piercing Weapon . | . . . Special Melee Weapon . | . . . Unidentified Prototypes . | . . . Corrupted Parts 5 | . 5 . System Corruption 13 | . 13 . Parts Lost 8 | . 6 2 Power 2 | . 1 1 Propulsion 2 | . 2 . Utility 1 | . . 1 Weapon 3 | . 3 . Highest Loss Streak 5 | . 5 1 To Critical Strikes . | . . . Average Backups 2 | . 1 4 Power . | . . 1 Propulsion 1 | . . 2 Utility . | . . 1 Weapon . | . . . Tool/Special . | . . . Unused Backups 5 | . . 5 Power 1 | . . 1 Propulsion 3 | . . 3 Utility 1 | . . 1 Weapon . | . . . Tool/Special . | . . . Average Slot Usage (%) 90 | . 90 89 Engine 10 | . 9 12 Core 3 | . 4 1 Leg 12 | . 16 . Flight 14 | . 9 28 Device 10 | . 12 4 Storage 7 | . 9 . Processor 4 | . 1 14 Energy Gun 18 | . 20 12 Ballistic Gun 7 | . 5 15 Peak Build Rating 11 | 7 11 11 Average Rating 7 | 5 7 7 On Entrance 6 | . 7 11 Avg Prop Armor Cover (%) . | . . . Naked Turns . | . . . Heaviest Build 15 | 15 15 8 Greatest Support 20 | 20 20 8 Greatest Overweight (x) 1 | . 1 . Average Overweight (x) . | . . . Largest Inventory Capacity 8 | 8 8 5 Average Capacity 6 | 7 7 5 Most Carried 6 | 5 6 5 Average Carried 1 | . 1 4 Final Capacity 8 | 8 5 5 Final Carried 5 | . 5 5 Class Distribution -------------------- 56% | Mutant 43% | Scavenger-Mutant Dominant Class ---------------- Mutant | -10/Materials Scavenger-Mutant | -10/Mines Resources | -11 -10 -10 ----------- Run | Yrd Mat Min Matter Collected 556 | 260 189 107 Remotely . | . . . Salvage Created 1070 | 252 671 147 Parts 71 | 17 34 20 Haulers Intercepted 2 | . 2 . Recyclers Shooed 1 | . 1 . Parts Field Recycled . | . . . Retrieved Matter . | . . . Parts Self-Destructed . | . . . Prevented . | . . . Parts Restored . | . . . Kills | -11 -10 -10 ------- Run | Yrd Mat Min Combat Hostiles Destroyed 16 | . 8 8 Guns 15 | . 7 8 AOE 1 | . 1 . Classes Destroyed 7 | 3 4 . Worker 7 | 2 4 1 Tunneler 6 | 5 1 . Hauler 2 | . 2 . Recycler 3 | 1 2 . Watcher 2 | . 2 . Swarmer 10 | . 2 8 Grunt 6 | . 6 . Best Kill Streak 6 | 6 5 3 Combat Bots Only 4 | . 4 3 Max Kills in Single Turn 1 | 1 1 1 Gunslinging . | . . . Exploded 1 | . 1 . Melee . | . . . Uniques/NPCs Destroyed . | . . . Combat | -11 -10 -10 -------- Run | Yrd Mat Min Hostile Shots Fired 143 | . 84 59 Missed 41 | . 23 18 Hits 102 | . 61 41 Projectile 102 | . 61 41 AOE 1 | . . 1 Damage Taken 1124 | 16 754 354 Core 255 | 8 160 87 Absorbed by Shields . | . . . Core Remaining (%) 96 | 96 . . Volleys Fired 135 | 19 87 29 Largest 2 | 2 2 2 Hottest 80 | 80 80 60 Shots Fired 243 | 38 148 57 Gun 243 | 38 148 57 Cannon . | . . . Launcher . | . . . Special . | . . . Kinetic 78 | . 49 29 Thermal 73 | . 45 28 Explosive . | . . . Electromagnetic 92 | 38 54 . Robot Hit Streak 10 | 5 10 6 Robot Miss Streak 6 | 4 6 6 Penetration Max . | . . . Secondary Targets 2 | . . 2 Max Gunslinging Chain 1 | . . 1 Shots Hit Robots 111 | 18 67 26 Core Hits 54 | 9 33 12 Critical Kills . | . . . Critical Parts Destroyed . | . . . Critical Strikes 1 | 1 . . Corrupt 1 | 1 . . Melee Attacks . | . . . Impact . | . . . Slashing . | . . . Piercing . | . . . Sneak Attacks . | . . . Combat Hostiles . | . . . Follow-up Attacks . | . . . Damage Inflicted 1576 | 341 952 283 Guns 1367 | 258 826 283 Cannons . | . . . Explosions 205 | 83 122 . Melee . | . . . Ramming 4 | . 4 . Kinetic 274 | . 168 106 Thermal 588 | 83 328 177 Explosive . | . . . Electromagnetic 710 | 258 452 . Impact . | . . . Slashing . | . . . Piercing . | . . . Highest Corruption 13 | . 13 13 Average Corruption 9 | . 7 13 Corruption Purged . | . . . Corruption Blocked . | . . . Effects 27 | . 16 11 Message Errors 7 | . 3 4 Matter Fused 6 | . 2 4 Heat Flow Errors 2 | . 2 . Energy Discharges 3 | . 2 1 Parts Rejected 1 | . 1 . Data Loss (minor) 4 | . 2 2 Misfires 1 | . 1 . Weapon Failures 3 | . 3 . Overload Shots . | . . . Overflow Damage . | . . . Projectiles . | . . . Explosions . | . . . Melee . | . . . Knockbacks . | . . . Impact . | . . . Kinetic . | . . . Secondary . | . . . Self-Inflicted Damage 60 | 16 44 . Shots 2 | 1 1 . Rammed 2 | . 2 . Targets Rammed 3 | . 3 . Kicked 1 | . 1 . Crushed . | . . . Highest Temperature 239 | 108 239 82 Average Temperature 68 | 38 91 33 Received Heat Transfer 356 | . 336 20 Siege Activations . | . . . Martial Activations . | . . . Shielding Activations . | . . . Robots Disrupted . | . . . Combat Hostiles . | . . . Robots Corrupted . | . . . Combat Hostiles . | . . . Parts Fried 3 | 1 2 . Impact Corruptions . | . . . Robots Melted . | . . . Combat Hostiles . | . . . Parts Melted . | . . . Heat Transferred 1075 | 50 625 400 Parts Sabotaged . | . . . Parts Stolen . | . . . Parts Stripped . | . . . Power Chain Reactions 5 | 2 3 . Alert | -11 -10 -10 ------- Run | Yrd Mat Min Maximum Alert Level . | . . . Low Security (%) 100 | 100 100 100 Level 1 . | . . . Level 2 . | . . . Level 3 . | . . . Level 4 . | . . . Level 5 . | . . . High Security . | . . . Max Security . | . . . Peak Influence 79 | 15 76 79 Initial 14 | . 3 14 Average 29 | 3 28 47 Influence Increases 553 | 40 318 195 Destroy 0b10 Robot/C 320 | . 160 160 Destroy 0b10 Robot/NC 100 | 40 55 5 Destroy Leader 68 | . 38 30 Successful Hack 8 | . 8 . Disable Machine 30 | . 30 . Destroy Structure 12 | . 12 . Lose Combat Pursuer 15 | . 15 . Influence Decreases 484 | 35 286 163 Entered New Map 25 | . 2 23 Time Decay 389 | 35 234 120 Lost Part 70 | . 50 20 Squads Dispatched 3 | . 3 . Investigation 2 | . 2 . Extermination . | . . . Reinforcement 1 | . 1 . Assault . | . . . Garrison . | . . . Intercept . | . . . Searches Triggered . | . . . Construction Impeded . | . . . Haulers Reinforced . | . . . Active Scanning Responses . | . . . Cargo Convoy Interrupts . | . . . Stealth | -11 -10 -10 --------- Run | Yrd Mat Min Distress Signals 1 | . 1 . Communications Jammed . | . . . Distress Signals . | . . . Times Spotted 31 | . 20 11 Peak Tracking Total 5 | . 5 3 Tactical Retreats 1 | . 1 . Traps | -11 -10 -10 ------- Run | Yrd Mat Min Traps Triggered 1 | . 1 . Indirectly . | . . . Trap Hack Attempts . | . . . Triggered . | . . . Disarmed . | . . . Reprogrammed . | . . . Reused . | . . . Traps Extracted . | . . . Installed . | . . . Triggered . | . . . Machines | -11 -10 -10 ---------- Run | Yrd Mat Min Machines Disabled 2 | . 2 . Max in Single Turn 1 | . 1 . Machines Repaired . | . . . Machines Dismantled . | . . . Machines Sabotaged . | . . . Overloaded Fab Kills . | . . . Hacking | -11 -10 -10 --------- Run | Yrd Mat Min Machines Accessed 5 | . 5 . Terminals 4 | . 4 . Fabricators . | . . . Repair Stations . | . . . Recycling Units 1 | . 1 . Scanalyzers . | . . . Garrison Access . | . . . Total Hacks 11 | . 11 . Successful 7 | . 7 . Failed 4 | . 4 . Catastrophic 3 | . 3 . Database Lockouts . | . . . Manual 2 | . 2 . Terminals 9 | . 9 . Fabricators . | . . . Repair Stations . | . . . Recycling Units 2 | . 2 . Scanalyzers . | . . . Garrison Access . | . . . Terminal Hacks 6 | . 6 . Locate Traps 2 | . 2 . Dispatch Records 1 | . 1 . Hauler Manifests 1 | . 1 . Zone Layout 2 | . 2 . Fabricator Hacks . | . . . Repair Station Hacks . | . . . Recycling Unit Hacks 1 | . 1 . Report Inventory 1 | . 1 . Scanalyzer . | . . . Garrison Access Hacks . | . . . Unauthorized Hacks . | . . . Terminals . | . . . Fabricators . | . . . Repair Stations . | . . . Recycling Units . | . . . Scanalyzers . | . . . Garrison Access . | . . . Data Cores Recovered . | . . . Used . | . . . Hacking Detections 4 | . 4 . Full Trace Events 1 | . 1 . Feedback Events . | . . . Feedback Blocked . | . . . Robot Schematics Acquired . | . . . Robots Built . | . . . Authchips . | . . . Time . | . . . Total Robot Build Rating . | . . . Part Schematics Acquired . | . . . Parts Built . | . . . Authchips . | . . . Time . | . . . Total Part Build Rating . | . . . Part Studies Acquired . | . . . Parts Repaired . | . . . Time . | . . . Parts Recycled . | . . . Recycled Matter . | . . . Retrieved Matter . | . . . Retrieved Components . | . . . Parts Scanalyzed . | . . . Part Schematics Acquired . | . . . Parts Damaged . | . . . Bothacking | -11 -10 -10 ------------ Run | Yrd Mat Min Used RIF Installer . | . . . Robots Hacked . | . . . Non-combat . | . . . Combat . | . . . Robot Hacks Applied . | . . . Relay Couplers Released . | . . . Fabnet Peak Effective % . | . . . Robots Rewired . | . . . Allies Hacked . | . . . Hacks Repelled . | . . . Allies | -11 -10 -10 -------- Run | Yrd Mat Min Total Allies . | . . . Largest Group . | . . . Highest-Rated Group . | . . . Highest-Rated Ally . | . . . Total Orders . | . . . Ally Attacks . | . . . Total Damage . | . . . Kills . | . . . Allies Corrupted . | . . . Allies Melted . | . . . Intel | -11 -10 -10 ------- Run | Yrd Mat Min Active Infowar (turns) 760 | 4 504 252 Seismic 441 | 4 437 . T.N.C. 319 | . 67 252 Robot Analysis Total . | . . . Derelict Logs Recovered 2 | . . 2 Drone Launches . | . . . Drone Recoveries . | . . . Exploration | -11 -10 -10 ------------- Run | Yrd Mat Min Turns Passed 1101 | 129 720 252 Spaces Moved 970 | 52 542 376 Core 25 | 13 12 . Treads . | . . . Legs 308 | 39 269 . Wheels . | . . . Hover . | . . . Flight 637 | . 261 376 Fastest Speed 37 | 50 37 37 Average Speed 65 | 102 81 37 Slowest Speed 190 | 120 190 37 Overloaded Moves . | . . . Propulsion Burnouts . | . . . Robots Hopped 1 | . . 1 Potential Cave-ins . | . . . Cave-ins Triggered . | . . . Exploration Rate (%) 50 | 3 77 72 Regions Visited 2 Branch Regions 1 Pre-discovered Areas . | . . . Known Exits Taken . | . . . Unknown Exits Taken 2 | 1 1 . Scrap Searched . | . . . Spaces Dug . | . . . Terrain Destroyed 17 | 7 10 . Melee . | . . . Projectile . | . . . AOE 17 | 7 10 . Terrain Rammed . | . . . Walls Destroyed . | . . . Machines Disabled . | . . . Actions | -11 -10 -10 --------- Run | Yrd Mat Min Total 1206 | 89 680 437 Wait 27 | 5 12 10 Move 966 | 51 541 374 Hop 1 | . . 1 Pick Up 31 | 7 18 6 Fast Attach 1 | . . 1 Attach 18 | 7 10 1 Detach . | . . . Swap 12 | . 5 7 Drop 12 | . 4 8 Fire 135 | 19 87 29 Melee . | . . . Ram 2 | . 2 . Kick 1 | . 1 . Crush . | . . . Escape Stasis . | . . . Rewire . | . . . Trap . | . . . Miscellaneous . | . . . Route ------- -11/Scrapyard -10/Materials (discovered 4 exits: [*Mat x2] / [*Min x2]) -10/Mines (discovered 1 exit: [*Mat]) History --------- Turn | Location | Event 9 | -11/Scrapyard | Discovered new exit (range 15) 130 | -11/Scrapyard | Entered Materials 331 | -10/Materials | Build established: Mutant 386 | -10/Materials | Discovered new exit (range 14) 573 | -10/Materials | System corruption reached 10% 583 | -10/Materials | Core integrity fell below 50% 611 | -10/Materials | Lost 5 parts (1p1n3w) 659 | -10/Materials | Discovered new exit (range 9) 690 | -10/Materials | Discovered new exit (range 9) 690 | -10/Materials | Discovered new exit (range 9) 850 | -10/Materials | Entered Mines 884 | -10/Mines | Learned 2 Materials zone layouts 887 | -10/Mines | Learned location of 1 exit from Materials 890 | -10/Mines | Found a hidden stash of uninstalled traps 903 | -10/Mines | Received a Rocket Launcher from a helpful Derelict 922 | -10/Mines | Build established: Scavenger-Mutant 943 | -10/Mines | Core integrity fell below 20% 1020 | -10/Mines | Assembled infested the area 1025 | -10/Mines | Assisted by a Guerilla fighting off Assembled 1100 | -10/Mines | Discovered new exit (range 5) 1102 | -10/Mines | Destroyed by as-90229 with Assembled F-torch Last Messages --------------- from, and they're closing on this area, come on!" YU-AO0(h): "I'll hold them off! Go on ahead or try to find another way!" HV Slug penetrates C-45 Heavy ARC. C-45 Heavy ARC bursts open, deploying its payload. D-53 Grenadier unfolds itself. System corrupted: Component data lost. System corrupted: Matter fused (-9). S-10 Pest destroyed. Switching to secondary target: S-10 Pest. S-10 Pest destroyed. Dropped Flight Unit. Acquired Flight Unit. Dropped Lgt. Assault Rifle. Acquired 30 matter. System corrupted: Matter fused (-7). Dropped Sml. Laser. Acquired Lgt. Assault Rifle. Dropped Lgt. Ion Engine. System corrupted: Matter fused (-8). EXIT=FOUND Map ----- +----------------------------------------------------+ | #### #??????# #?? | | ## #??????# """ """ """ """ #?? | | #??????# """ """=""" """ #?? | | ##??????# """ """[""" """ #?? | | """ #####???????# %* =* #?? | | """ ##???????????# """ """[""" """ #?? | | """ ##???????????# """ """ """ """ #?? | | ## ##??????????# """ """*""" """ #?? | | ?## #### ##?????????# #?? | | ??## ##??## ##????????# """ """ """ """ #?? | | ???## #????# ########## """ """ """ """ #?? | | ????# #????## ## """ """ """ """ #?? | | ##### #?????## #?? | | # ???????## ### #?? | | # ###????????## ## #?## ###############?? | | # #??????????## #### ##??# #???????????????? | | # #????###??## ##?####???# #???????????????? | | # ###### #### [#????????# #???????????????? | | # ## #????????# #???????????????? | | # ###### #????????# ###?????????????? | | # #????## ##??####### ##????????????? | | # #?????# ##???# #????????????? | | # #?????## ##????# #### #????????????? | | # #??????#########?????# #??## #????????????? | | # #?????????????????#### ####### ##????????????? | | # #?????????????????# @ #???###?????????????? | | # #?????????????????# < #???????????????????? | | # #?????????????##??#a #???????????????????? | | #????????????? ?a %= #???????????????????? | | #????????????#%####* #???????????????????? | | ########?????# #??#########???????????????????? | | #?????# #??????????????????????????????? | | #?????# ####???????????????????????????? | | ##### #?????# ##??????????????????????????? | | # #???# #?????# ####???????????????????????? | | ####???# #????## #???????????????????????? | | ???????# #????# ######??????????????????? | | #??????# #????# ???????????????????? | | #??????# ###### $ ???????????????????? | | #??????# #??????????????????????????? | | #??????# ##?????????????????????????? | | #??????# ###### #?????????????????????????? | | #??????# ###### #??????????? ###??????????? | | #??????# # ######## ?????????? | | #??????###### # ?????????? | | ????????????# ?????????? | | ????????????#### ###### ?????????? | | ???????????????# ##????????? ???????????????? | | ???????????????# ##??????????????????????????? | | ????????????? #???????????????????????????? | +----------------------------------------------------+ Best States ------------- Heat Dissipation 39 Energy Generation 14 Energy Capacity 250 Matter Stores 300 Matter Capacity 300 Sight Range 16 Terrain Scan Density 10 Evasion (%) 62 Item Schematics ----------------- None Robot Schematics ------------------ None Fabricated ------------ Nothing Repaired ---------- Nothing Studied --------- None Alien Tech Used ----------------- None Achievements -------------- None Challenges ------------ None Game ------ Seed BlastPersonalSlamshotty Manual? 0 Play Time 00:14:28 Cumulative 35.1 hours Start 2026.01.06 @ 18:26:09 End 2026.01.06 @ 18:40:26 Sessions 1 Manual Loads 0 Difficulty Rogue Special Mode None Game No. 72 Rogue 69 Adventurer 0 Explorer 3 Win Type - Total 0 Types 0/0/0/0/0/0/0/0/0/0 Lore% 17 Gallery% 30 Achievement% 21 Wizard Run 0 Options --------- Layout 0 ASCII 0 Keyboard 0 Movement Mouse Keybinds 0 Fullscreen 2 Font 18/SmallcapsGlow Map View 76x50 Zoom Use 0% Tactical HUD 0 Map Filters NONE Filters NONE Steam 1 RUN: 20d11f5a-545d-4426-b9fd-12d1b3e22114